Cogmind - Beta 15 @@@ ROGUE MODE // 2025.07.27 @ 02:27:04 Player: Inverisimilidude Result: Destroyed by LR-M1Z(E) with Gauss Rifle Performance ------------- Evolutions (2) 1000 Regions Visited (6) 1200 Robots Destroyed (71) 355 Value Destroyed (2047) 2047 Prototype IDs (22) 440 Alien Tech Used (0) 0 Bonus (643) 643 TOTAL SCORE: 5685 Bonus ------- Follower Combat Kills 343 Registered with UFD 300 Cogmind --------- Core Integrity 0/550 Matter 1/300 Energy 99/100 System Corruption 1% Temperature Cool (24) Movement Core (50) Location -8/Scraptown Parts ------- > --- POWER (1) -------- (None) > --- PROPULSION (4) --- (None) > --- UTILITY (3) ------ (None) > --- WEAPON (3) ------- (None) > --- INVENTORY (5) ---- High-capacity Matter Pod (200) Active Sensor Suite Centrium Light Armor Plating Peak State ------------ > --- POWER ------------ Reinforced Ion Engine > --- PROPULSION ------- Aluminum Leg Carbon-fiber Leg Carbon-fiber Leg Titanium Leg > --- UTILITY ---------- Large Storage Unit Scrapoid Pod > --- WEAPON ----------- Particle Gun Heavy Ion Cannon Great Maul > --- INVENTORY -------- Titanium Leg Wheel Compact Wheel Armored Wheel High-capacity Matter Pod Active Sensor Suite Centrium Light Armor Plating 01-MTF's Autohacker Overtuned Pulse Rifle Minigun Flak Cannon Advanced EMP Blaster Precision Rocket Launcher [Rating: 41] Favorites ----------- Power Reinforced Ion Engine Engine Reinforced Ion Engine Power Core Light Nuclear Core Propulsion Carbon-fiber Leg Treads Light Treads Leg Carbon-fiber Leg Wheel Wheel Hover Unit Cooled Gravmag System Utility Improved Heat Sink Device Improved Heat Sink Storage Large Storage Unit Protection Light Armor Plating Weapon Particle Gun Energy Gun Particle Gun Energy Cannon Heavy Ion Cannon Ballistic Gun Minigun Ballistic Cannon Flak Cannon Launcher Rocket Launcher Impact Weapon Great Maul Build | -11 -10 -9 -8 -8 -8 -8 ------- Run | Yrd Mat Mat Mat Sto Rec Scr Slots Evolved 4 | . . 2 2 . . . Power . | . . . . . . . Propulsion 2 | . . 1 1 . . . Utility 1 | . . 1 . . . . Weapon 1 | . . . 1 . . . Parts Attached 66 | 7 12 8 22 9 5 3 Power 9 | 1 2 2 2 1 1 . Engine 8 | 1 2 1 2 1 1 . Core 1 | . . 1 . . . . Reactor . | . . . . . . . Propulsion 19 | 2 4 2 7 1 2 1 Treads 1 | . . 1 . . . . Leg 13 | . 3 1 6 1 1 1 Wheel 4 | 2 1 . 1 . . . Hover 1 | . . . . . 1 . Flight . | . . . . . . . Utility 18 | 2 1 2 7 3 2 1 Device 10 | 1 1 1 3 2 1 1 Storage 3 | 1 . . 1 1 . . Processor . | . . . . . . . Hackware . | . . . . . . . Protection 5 | . . 1 3 . 1 . Artifact . | . . . . . . . Weapon 20 | 2 5 2 6 4 . 1 Energy Gun 8 | 2 4 1 1 . . . Energy Cannon 1 | . . . 1 . . . Ballistic Gun 5 | . 1 1 2 1 . . Ballistic Cannon 1 | . . . 1 . . . Launcher 3 | . . . 1 2 . . Special Weapon . | . . . . . . . Impact Weapon 2 | . . . . 1 . 1 Slashing Weapon . | . . . . . . . Piercing Weapon . | . . . . . . . Special Melee Weapon . | . . . . . . . Unidentified Prototypes 5 | . . . . 2 3 . Parts Lost 21 | . 10 4 6 . 1 . Power 5 | . 2 2 1 . . . Propulsion 6 | . 3 1 1 . 1 . Utility 3 | . 1 . 2 . . . Weapon 7 | . 4 1 2 . . . Highest Loss Streak 5 | . 5 3 3 . 1 . To Critical Strikes . | . . . . . . . Average Backups 12 | 3 5 7 10 14 14 14 Power . | . . . 1 1 . . Propulsion 3 | 1 2 2 2 3 3 3 Utility 2 | . . . 1 3 2 2 Weapon 6 | . 2 4 5 7 8 6 Tool/Special . | . . . . . . . Unused Backups 15 | . 2 3 . 1 1 8 Power 1 | . 1 . . . . . Propulsion 4 | . . 1 . 1 . 2 Utility 4 | . 1 . . . 1 2 Weapon 6 | . . 2 . . . 4 Tool/Special . | . . . . . . . Average Slot Usage (%) 97 | . 88 99 95 99 98 96 Engine 8 | . 13 9 6 9 9 8 Leg 33 | . 16 31 31 36 34 35 Device 15 | . 7 18 12 17 16 15 Storage 9 | . 14 11 9 9 9 8 Energy Gun 10 | . 26 20 8 9 9 8 Energy Cannon 3 | . . . 6 . . 7 Ballistic Gun 5 | . . 1 10 8 9 1 Impact Weapon 6 | . . . . 8 9 8 Peak Build Rating 41 | 7 11 15 34 38 40 41 Average Rating 29 | 5 7 13 29 33 31 34 On Entrance 18 | . 7 11 15 34 33 30 Naked Turns 7 | . . . . . . 7 Heaviest Build 53 | 12 17 19 48 46 42 53 Greatest Support 65 | 26 26 30 54 51 65 57 Greatest Overweight (x) 5 | 1 5 . 1 . . . Average Overweight (x) . | . . . . . . . Largest Inventory Capacity 15 | 8 8 8 15 15 15 15 Average Capacity 13 | 7 8 8 13 15 15 14 Most Carried 15 | 5 8 8 15 15 15 15 Average Carried 12 | 3 5 7 10 14 14 14 Final Capacity 15 | 8 8 8 15 15 15 5 Final Carried 15 | 5 8 7 15 15 15 5 Class Distribution -------------------- 65% | Commander-Mutant 15% | Mutant 4% | Scavenger-Skirmisher 4% | Scavenger-Gunner 3% | Scavenger-Tank 3% | Scavenger-Mutant Dominant Class ---------------- Mutant | -10/Materials Mutant | -9/Materials Scavenger-Skirmisher | -8/Materials Commander-Mutant | -8/Storage Commander-Mutant | -8/Recycling Commander-Mutant | -8/Scraptown Resources | -11 -10 -9 -8 -8 -8 -8 ----------- Run | Yrd Mat Mat Mat Sto Rec Scr Matter Collected 1698 | 270 143 73 542 156 82 432 Remotely . | . . . . . . . Salvage Created 2393 | 99 694 489 925 186 . . Parts 142 | 9 35 43 47 8 . . Haulers Intercepted 2 | . . . . 2 . . Recyclers Shooed 4 | . . 1 3 . . . Parts Field Recycled . | . . . . . . . Retrieved Matter . | . . . . . . . Parts Self-Destructed . | . . . . . . . Prevented . | . . . . . . . Kills | -11 -10 -9 -8 -8 -8 -8 ------- Run | Yrd Mat Mat Mat Sto Rec Scr Combat Hostiles Destroyed 49 | . 13 13 23 . . . Guns 33 | . 11 12 10 . . . Cannons 5 | . . . 5 . . . AOE 10 | . 2 1 7 . . . Classes Destroyed 12 | 2 4 2 3 1 . . Worker 8 | 1 1 1 1 4 . . Builder 2 | . . 1 1 . . . Tunneler 5 | 4 . . 1 . . . Hauler 2 | . . . . 2 . . Recycler 2 | . 2 . . . . . Operator 1 | . . . 1 . . . Watcher 2 | . 1 1 . . . . Swarmer 9 | . 3 6 . . . . Grunt 27 | . 10 2 15 . . . Brawler 1 | . . . 1 . . . Duelist 2 | . . . 2 . . . Sentry 10 | . . 5 5 . . . Best Kill Streak 6 | 4 4 6 5 4 . . Combat Bots Only 5 | . 4 5 4 . . . Max Kills in Single Turn 2 | 1 2 2 2 1 . . Gunslinging . | . . . . . . . Exploded 2 | . 1 1 2 . . . Melee . | . . . . . . . Uniques/NPCs Destroyed . | . . . . . . . Combat | -11 -10 -9 -8 -8 -8 -8 -------- Run | Yrd Mat Mat Mat Sto Rec Scr Hostile Shots Fired 303 | . 81 49 117 12 2 42 Missed 92 | . 21 12 38 5 . 16 Hits 211 | . 60 37 79 7 2 26 Melee 4 | . . . 4 . . . Projectile 207 | . 60 37 75 7 2 26 AOE 1 | . . . 1 . . . Critical Strikes 10 | . . 1 7 . . 2 Damage Taken 3503 | . 849 651 1342 87 72 502 Core 850 | . 127 170 165 . . 388 Absorbed by Shields . | . . . . . . . Regen/Repaired (Parts) 394 | . . . . . . 394 Core Remaining (%) 68 | 100 49 57 . . . . Volleys Fired 131 | 11 40 27 53 . . . Largest 3 | 2 2 2 3 . . . Hottest 167 | 90 95 95 167 . . . Shots Fired 298 | 22 77 54 144 . . 1 Gun 244 | 22 77 54 91 . . . Cannon 46 | . . . 45 . . 1 Launcher 8 | . . . 8 . . . Special . | . . . . . . . Kinetic 76 | . 10 5 61 . . . Thermal 145 | 22 20 27 75 . . 1 Explosive 8 | . . . 8 . . . Electromagnetic 69 | . 47 22 . . . . Robot Hit Streak 24 | 4 24 7 9 . . . Robot Miss Streak 6 | 2 5 6 4 . . 1 Penetration Max . | . . . . . . . Secondary Targets 7 | . 6 1 . . . . Max Gunslinging Chain 1 | . 1 1 . . . . Shots Hit Robots 205 | 13 60 38 88 6 . . Core Hits 126 | 5 35 25 59 2 . . Critical Kills 1 | . . . 1 . . . Critical Parts Destroyed 1 | . . . . 1 . . Critical Strikes 8 | 1 2 . 4 1 . . Burn 6 | 1 2 . 3 . . . Meltdown 1 | . . . 1 . . . Smash 1 | . . . . 1 . . Melee Attacks 10 | . . . . 10 . . Impact 10 | . . . . 10 . . Slashing . | . . . . . . . Piercing . | . . . . . . . Sneak Attacks 4 | . . . . 4 . . Combat Hostiles . | . . . . . . . Follow-up Attacks . | . . . . . . . Damage Inflicted 4667 | 168 864 620 2683 332 . . Guns 2293 | 168 761 490 874 . . . Cannons 832 | . . . 832 . . . Explosions 1198 | . 103 130 965 . . . Melee 332 | . . . . 332 . . Ramming 12 | . . . 12 . . . Kinetic 780 | . 49 73 658 . . . Thermal 1807 | 168 263 328 1048 . . . Explosive 965 | . . . 965 . . . Electromagnetic 771 | . 552 219 . . . . Impact 332 | . . . . 332 . . Slashing . | . . . . . . . Piercing . | . . . . . . . Highest Corruption 1 | . . . . 1 1 1 Average Corruption 1 | . . . . 1 1 1 Corruption Purged . | . . . . . . . Corruption Blocked . | . . . . . . . Effects 36 | . . . . 10 5 21 Message Errors 10 | . . . . 2 2 6 Matter Fused 4 | . . . . 1 1 2 Heat Flow Errors 4 | . . . . . . 4 Energy Discharges 4 | . . . . 1 1 2 Data Loss (minor) 9 | . . . . 5 1 3 Data Loss (major) 3 | . . . . 1 . 2 Misfires 1 | . . . . . . 1 Alerts 1 | . . . . . . 1 Overload Shots . | . . . . . . . Overflow Damage 235 | . 67 . 30 138 . . Projectiles . | . . . . . . . Explosions 97 | . 67 . 30 . . . Melee 138 | . . . . 138 . . Knockbacks 8 | . . . 7 1 . . Impact 1 | . . . . 1 . . Kinetic 7 | . . . 7 . . . Secondary . | . . . . . . . Self-Inflicted Damage 383 | . 188 195 . . . . Shots 6 | . 3 3 . . . . Rammed . | . . . . . . . Targets Rammed 1 | . . . 1 . . . Kicked 1 | . . . 1 . . . Crushed . | . . . . . . . Highest Temperature 291 | 120 291 24 210 . . 192 Average Temperature 88 | 48 126 14 63 . . 76 Received Heat Transfer 1296 | . 294 159 675 9 33 126 Effects 2 | . 2 . . . . . Interference 2 | . 2 . . . . . Siege Activations . | . . . . . . . Martial Activations . | . . . . . . . Shielding Activations . | . . . . . . . Robots Disrupted 1 | . 1 . . . . . Combat Hostiles 1 | . 1 . . . . . Robots Corrupted 4 | . . . . 4 . . Combat Hostiles . | . . . . . . . Parts Fried 3 | . . 1 . 2 . . Impact Corruptions 6 | . . . . 6 . . Robots Melted 1 | . . . 1 . . . Combat Hostiles 1 | . . . 1 . . . Parts Melted 11 | 3 2 1 5 . . . Heat Transferred 4052 | 508 767 742 2035 . . . Parts Sabotaged . | . . . . . . . Parts Stolen . | . . . . . . . Parts Stripped . | . . . . . . . Power Chain Reactions 5 | . 2 3 . . . . Alert | -11 -10 -9 -8 -8 -8 -8 ------- Run | Yrd Mat Mat Mat Sto Rec Scr Maximum Alert Level 1 | . 1 . 1 . . . Low Security (%) 97 | 100 96 100 92 100 100 . Level 1 2 | . 3 . 7 . . . Level 2 . | . . . . . . . Level 3 . | . . . . . . . Level 4 . | . . . . . . . Level 5 . | . . . . . . . High Security . | . . . . . . . Max Security . | . . . . . . . Peak Influence 224 | 10 202 186 224 178 39 . Initial 71 | . 3 71 33 69 39 . Average 69 | 1 122 98 85 69 3 . Influence Increases 2298 | 25 495 399 764 551 64 . Destroy 0b10 Robot/C 1200 | . 260 260 460 180 40 . Destroy 0b10 Robot/NC 110 | 25 20 15 20 30 . . Destroy Leader 268 | . 52 72 90 54 . . Allied During Kill 172 | . . . . 155 17 . Successful Hack 61 | . 4 . 8 42 7 . Disable Machine 150 | . 30 15 60 45 . . Destroy Structure 127 | . 39 37 51 . . . Lose Combat Pursuer 210 | . 90 . 75 45 . . Influence Decreases 2298 | 20 330 489 679 614 166 . Entered New Map 307 | . 2 99 47 96 63 . Time Decay 1586 | 20 228 350 447 458 83 . Lost Part 200 | . 100 40 60 . . . Lost Ally 80 | . . . . 60 20 . Purge Threat 125 | . . . 125 . . . Squads Dispatched 8 | . 1 2 1 4 . . Investigation 2 | . 1 . 1 . . . Extermination . | . . . . . . . Reinforcement 4 | . . 2 . 2 . . Assault . | . . . . . . . Garrison 2 | . . . . 2 . . Intercept . | . . . . . . . Searches Triggered . | . . . . . . . Construction Impeded . | . . . . . . . Haulers Reinforced . | . . . . . . . Active Scanning Responses . | . . . . . . . Cargo Convoy Interrupts . | . . . . . . . Stealth | -11 -10 -9 -8 -8 -8 -8 --------- Run | Yrd Mat Mat Mat Sto Rec Scr Distress Signals 6 | . . 1 4 1 . . Communications Jammed . | . . . . . . . Distress Signals . | . . . . . . . Times Spotted 117 | . 21 20 40 18 2 16 Peak Tracking Total 29 | . 4 5 7 5 1 29 Tactical Retreats 9 | . 4 . 3 2 . . Traps | -11 -10 -9 -8 -8 -8 -8 ------- Run | Yrd Mat Mat Mat Sto Rec Scr Traps Triggered 5 | . 1 2 1 1 . . Indirectly . | . . . . . . . Trap Hack Attempts . | . . . . . . . Triggered . | . . . . . . . Disarmed . | . . . . . . . Reprogrammed . | . . . . . . . Reused . | . . . . . . . Traps Extracted . | . . . . . . . Installed 1 | . . . . . . 1 Triggered . | . . . . . . . Most Traps Carried 1 | . . . . . . 1 Machines | -11 -10 -9 -8 -8 -8 -8 ---------- Run | Yrd Mat Mat Mat Sto Rec Scr Machines Disabled 10 | . 2 1 4 3 . . Max in Single Turn 2 | . 2 1 1 1 . . Garrison Access 1 | . . . . 1 . . Machines Repaired . | . . . . . . . Machines Dismantled . | . . . . . . . Machines Sabotaged . | . . . . . . . Overloaded Fab Kills . | . . . . . . . Hacking | -11 -10 -9 -8 -8 -8 -8 --------- Run | Yrd Mat Mat Mat Sto Rec Scr Machines Accessed 24 | . 1 1 4 7 9 2 Terminals 17 | . 1 1 4 6 5 . Fabricators . | . . . . . . . Repair Stations . | . . . . . . . Recycling Units 2 | . . . . . 2 . Scanalyzers . | . . . . . . . Garrison Access 1 | . . . . 1 . . Total Hacks 54 | . 1 2 8 16 21 6 Successful 30 | . 1 . 2 10 11 6 Failed 24 | . . 2 6 6 10 . Catastrophic 8 | . . . 4 2 2 . Database Lockouts . | . . . . . . . Manual 16 | . . 2 7 3 4 . Terminals 36 | . 1 2 8 15 10 . Fabricators . | . . . . . . . Repair Stations . | . . . . . . . Recycling Units 5 | . . . . . 5 . Scanalyzers . | . . . . . . . Garrison Access 1 | . . . . 1 . . Terminal Hacks 27 | . 1 . 2 9 9 6 Record 11 | . . . . . 6 5 Robot Analysis 1 | . . . . 1 . . Prototype ID Bank 3 | . . . . 3 . . Branch Access Points 3 | . . . 1 1 1 . Alert Level 1 | . . . . . 1 . Unreport Threat 1 | . . . 1 . . . Dispatch Records 3 | . 1 . . 1 1 . Patrol Status 1 | . . . . 1 . . Hauler Manifests 1 | . . . . 1 . . Registered Prototypes 1 | . . . . 1 . . Proto ID Catalog 1 | . . . . . . 1 Fabricator Hacks . | . . . . . . . Repair Station Hacks . | . . . . . . . Recycling Unit Hacks 2 | . . . . . 2 . Retrieve Components 2 | . . . . . 2 . Scanalyzer . | . . . . . . . Garrison Access Hacks 1 | . . . . 1 . . Seal Access 1 | . . . . 1 . . Unauthorized Hacks . | . . . . . . . Terminals . | . . . . . . . Fabricators . | . . . . . . . Repair Stations . | . . . . . . . Recycling Units . | . . . . . . . Scanalyzers . | . . . . . . . Garrison Access . | . . . . . . . Data Cores Recovered . | . . . . . . . Used . | . . . . . . . Hacking Detections 12 | . . 1 3 3 5 . Full Trace Events 2 | . . . 2 . . . Feedback Events . | . . . . . . . Feedback Blocked . | . . . . . . . Robot Schematics Acquired . | . . . . . . . Robots Built . | . . . . . . . Authchips . | . . . . . . . Time . | . . . . . . . Total Robot Build Rating . | . . . . . . . Part Schematics Acquired . | . . . . . . . Parts Built . | . . . . . . . Authchips . | . . . . . . . Time . | . . . . . . . Total Part Build Rating . | . . . . . . . Parts Repaired . | . . . . . . . Time . | . . . . . . . Parts Recycled . | . . . . . . . Recycled Matter . | . . . . . . . Retrieved Matter . | . . . . . . . Retrieved Components 14 | . . . . . 14 . Parts Scanalyzed . | . . . . . . . Part Schematics Acquired . | . . . . . . . Parts Damaged . | . . . . . . . Bothacking | -11 -10 -9 -8 -8 -8 -8 ------------ Run | Yrd Mat Mat Mat Sto Rec Scr Used RIF Installer . | . . . . . . . Robots Hacked . | . . . . . . . Non-combat . | . . . . . . . Combat . | . . . . . . . Robot Hacks Applied . | . . . . . . . Relay Couplers Released . | . . . . . . . Fabnet Peak Effective % . | . . . . . . . Robots Rewired . | . . . . . . . Allies Hacked . | . . . . . . . Hacks Repelled . | . . . . . . . Allies | -11 -10 -9 -8 -8 -8 -8 -------- Run | Yrd Mat Mat Mat Sto Rec Scr Total Allies 10 | . . . . 10 . . Largest Group 10 | . . . . 10 7 5 Highest-Rated Group 173 | . . . . 173 125 93 Highest-Rated Ally 29 | . . . . 29 29 29 Total Orders 4 | . . . . 4 . . EXPLORE 4 | . . . . 4 . . Ally Attacks 81 | . . . . 57 9 15 Total Damage 943 | . . . . 648 113 182 Kills 13 | . . . . 9 2 2 Allies Corrupted . | . . . . . . . Allies Melted 1 | . . . . . 1 . Intel | -11 -10 -9 -8 -8 -8 -8 ------- Run | Yrd Mat Mat Mat Sto Rec Scr Active Infowar (turns) 5797 | 36 201 553 527 1490 784 2206 Sensors 5007 | . . . 527 1490 784 2206 Terrain 553 | . . 553 . . . . Seismic 237 | 36 201 . . . . . Robot Analysis Total 1 | . . . . 1 . . Derelict Logs Recovered . | . . . . . . . Drone Launches 4 | . . . . 4 . . Drone Recoveries 2 | . . . . 2 . . Exploration | -11 -10 -9 -8 -8 -8 -8 ------------- Run | Yrd Mat Mat Mat Sto Rec Scr Turns Passed 8754 | 134 554 781 1352 1922 938 3073 Spaces Moved 6072 | 98 356 541 832 1234 632 2379 Core 22 | 5 3 . . . . 14 Treads . | . . . . . . . Legs 5825 | . 221 541 832 1234 632 2365 Wheels 225 | 93 132 . . . . . Hover . | . . . . . . . Flight . | . . . . . . . Fastest Speed 50 | 50 80 120 120 120 122 50 Average Speed 120 | 88 107 120 121 121 122 121 Slowest Speed 300 | 100 300 120 190 123 123 122 Overloaded Moves . | . . . . . . . Propulsion Burnouts . | . . . . . . . Robots Hopped . | . . . . . . . Potential Cave-ins . | . . . . . . . Cave-ins Triggered . | . . . . . . . Exploration Rate (%) 61 | 4 45 44 50 97 95 96 Regions Visited 6 Branch Regions 3 Pre-discovered Areas 1 | . . . . 1 . . Known Exits Taken 2 | . . . 1 1 . . Unknown Exits Taken 4 | 1 1 1 . . 1 . Scrap Searched 8 | . . . . . . 8 Spaces Dug . | . . . . . . . Terrain Destroyed 141 | . 56 35 49 . . 1 Melee . | . . . . . . . Projectile 13 | . . . 12 . . 1 AOE 128 | . 56 35 37 . . . Terrain Rammed . | . . . . . . . Walls Destroyed . | . . . . . . . Machines Disabled . | . . . . . . . Actions | -11 -10 -9 -8 -8 -8 -8 --------- Run | Yrd Mat Mat Mat Sto Rec Scr Total 7251 | 120 452 622 1057 1642 796 2562 Wait 858 | . 25 36 120 371 148 158 Move 6066 | 97 355 540 831 1233 631 2379 Hop . | . . . . . . . Pick Up 51 | 5 14 6 15 2 3 6 Fast Attach 32 | 7 2 3 10 4 4 2 Attach 19 | . 8 4 6 1 . . Detach 3 | . . . . 3 . . Swap 33 | . 4 1 10 10 4 4 Drop 45 | . 4 5 11 8 6 11 Fire 131 | 11 40 27 53 . . . Melee 10 | . . . . 10 . . Ram . | . . . . . . . Kick 1 | . . . 1 . . . Crush . | . . . . . . . Escape Stasis . | . . . . . . . Rewire 1 | . . . . . . 1 Trap 1 | . . . . . . 1 Miscellaneous . | . . . . . . . Route ------- -11/Scrapyard -10/Materials (discovered 2 exits: *Mat / [*Min]) -9/Materials -8/Materials (discovered 3 exits: [*Fac] / *Sto x2) -8/Storage (discovered 2 exits: [*Fac] / *Rec) -8/Recycling (discovered 2 exits: [*Fac] / *Scr) -8/Scraptown (discovered 2 exits: [*Fac x2]) History --------- Turn | Location | Event 11 | -11/Scrapyard | Discovered new exit (range 16) 135 | -11/Scrapyard | Entered Materials 250 | -10/Materials | Lost 3 parts (1p1n1w) 292 | -10/Materials | Discovered new exit (range 12) 300 | -10/Materials | Build established: Mutant 367 | -10/Materials | Lost 5 parts (2n1u2w) 414 | -10/Materials | Discovered new exit (range 10) 591 | -10/Materials | Core integrity fell below 50% 689 | -10/Materials | Entered another Materials area 689 | -9/Materials | Evolved 2 slots: Propulsion x1, Utility x1 1375 | -9/Materials | Lost 3 parts (1p1n1w) 1466 | -9/Materials | Discovered new exit (range 5) 1470 | -9/Materials | Entered another Materials area 1470 | -8/Materials | Evolved 2 slots: Propulsion x1, Weapon x1 1502 | -8/Materials | Discovered new exit (range 15) 1726 | -8/Materials | Identified exit to Storage 1900 | -8/Materials | Lost 3 parts (1p2w) 2305 | -8/Materials | Build established: Scavenger-Gunner 2341 | -8/Materials | Discovered new exit (range 11) 2822 | -8/Materials | Entered Storage 2949 | -8/Storage | Met 01-MTF 3017 | -8/Storage | Identified exit to Recycling 3020 | -8/Storage | Assisted by bots powering up and referring to "LRC-V3" 3204 | -8/Storage | Learned location of Armory (-4) 3240 | -8/Storage | Discovered new exit (range 16) 3327 | -8/Storage | Build established: Commander-Mutant 3749 | -8/Storage | Garrison activated, responded to threat 4744 | -8/Storage | Entered Recycling 4744 | -8/Recycling | Accompanied by 8 allies (01-MTF) 4855 | -8/Recycling | Scanned before Scraplab entrance 4883 | -8/Recycling | Found Prototype Device 4884 | -8/Recycling | Identified 01-MTF's Autohacker 4923 | -8/Recycling | Entered Scraplab 4959 | -8/Recycling | Discovered new exit (range 3) 5427 | -8/Recycling | Discovered new exit (range 16) 5682 | -8/Recycling | Entered Scraptown 5682 | -8/Scraptown | Accompanied by 5 allies 6070 | -8/Scraptown | Discovered new exit (range 5) 6151 | -8/Scraptown | Visited Bundlers 6214 | -8/Scraptown | Visited Fellowship of the Rings 6254 | -8/Scraptown | Visited CR-KLE's Repair Center 6274 | -8/Scraptown | CR-KLE repaired 8 parts 6581 | -8/Scraptown | Visited Shadow of the Wyrm 6604 | -8/Scraptown | Visited Comm Corps 6716 | -8/Scraptown | Visited Awakened 6920 | -8/Scraptown | Visited UFD Registry 6920 | -8/Scraptown | Registered with UFD as "Fibermachine" 6964 | -8/Scraptown | Visited Junk Repository 7009 | -8/Scraptown | Visited Abandonware Association 7034 | -8/Scraptown | Learned abandonware demo "REPAIR.EXE" 7034 | -8/Scraptown | Learned abandonware demo "REVENGE.EXE" 7070 | -8/Scraptown | Visited DA-N13 Charitable Foundation 7077 | -8/Scraptown | Found DCF Scrap (30 items) 7191 | -8/Scraptown | Discovered new exit (range 5) 7241 | -8/Scraptown | Visited Science Guys 7322 | -8/Scraptown | Warned about trapping Scraptown 7525 | -8/Scraptown | Visited Scrapoid Research Area 7565 | -8/Scraptown | Visited Infowarlord's Domain 7585 | -8/Scraptown | Found Active Sensor Suite 7618 | -8/Scraptown | Visited Curators Association 7832 | -8/Scraptown | Visited Scrap Suit Storage 7881 | -8/Scraptown | Visited Scrapoid Pod Storage 7888 | -8/Scraptown | Found Scrapoid Pod 8082 | -8/Scraptown | Visited Chapter 10 8412 | -8/Scraptown | Visited Supply Room 8734 | -8/Scraptown | Attacked by Scraptown defenders 8748 | -8/Scraptown | Released all parts (10) 8751 | -8/Scraptown | Core integrity fell below 50% 8755 | -8/Scraptown | Core integrity fell below 20% 8755 | -8/Scraptown | Destroyed by LR-M1Z(E) with Gauss Rifle Last Messages --------------- 08659_ Acquired 46 matter. 08734_ System corrupted: FCS attempts to trigger Hvy. Ion Cannon. 08734_ System corrupted: Hvy. Ion Cannon misfires. 08734_ ANNOUNCEMENT: Intruder alert! Defend Scraptown! 08748_ Released Scrapoid Pod. 08748_ Released Hvy. Ion Cannon. 08748_ Released Rnf. Ion Engine. 08748_ Released Lrg. Storage Unit. 08748_ Released Carbon-fiber Leg. 08748_ Released Particle Gun. 08748_ Released Aluminum Leg. 08748_ Released Titanium Leg. 08748_ Released Great Maul. 08750_ Penetrated by Slug. 08754_ Slug penetrates GQ-FDD(p). 08754_ Penetrated by Bolt. 08755_ Slug penetrates P8-T4G(j). Map ----- +----------------------------------------------------+ | ###### ########### ##########"" """"#### | | ###### ######????## ##????????#" "#??? | | #""""" """""#####?# #########?#" ""#??? | | #" " " #?# """"""""#?#" """#??? | | """ ""#" " " "### ### " ""#?#" """#??? | | """ "#" " " "#"" """ "#?#"""""""#??? | | """ "#""""" """""#" """ " ""#?#########??? | | "" "###### ######" " """"""""#????????????? | | " "#""""" """""#" ##"""####????????????? | | """ ""#" " " "#" "" " ######???????######### | | ### ###" " " "#" "c #????????????#"""""""" | | ??# " " "#"""""" E#????????????#" | | ??#####""""" """""#######k ###########??#" | | #?????###### ######?????# ##"""== ""#??#" """ | | ############ ############k p##"!!== "#??#" """ | | ##""! [["#??#" """ | | m##""! [["#??#" | | ######################### ##" ""#??#" | | #??????????????????????# h ##" "#??#" | | ######################### ### ############ ##### | | """"""##"" "" """" " # | | "##" "% " # | | !!! "## =/ # h | | ![! "##""=! # o | | = = "##"%[ # | | ! "##""! # @E ################# | | !! "#### ## # r jE#???????????????# | | ! "##!! # # r ###########?????# | | "##!! [# = # # #?????# | | """ ""##= ! # !=! r j #?????# | | ### ####[! /#" " "%" # # #?????# | | ### ####! !]#""" """ # x # #?????# | | """ ""################# c# #?????# | | "#????????######## x # #?????# | | "" "#?????""""""" ; x # #?????# | | "" "#????#""""""" #= # #?????# | | "#????#""""""" #=[= # #?????# | | ""#????#""""""" #=]]/ ###########?????# | | """""#????#"""""" #]!![ #???????????????# | | """"""#????#""" #*=] #???????????????# | | """"""?????#""""""" #=[= #???????????????# | | #####??????#""""""" #= ################# | | #######????#""""""" # | | """X""#????#""""""" | | " "#?????""""""" # | | " "#???????######### | | " "#????????######## | | " "#????????#" | | " "#????????# | | "" """########### | +----------------------------------------------------+ Best States ------------- Heat Dissipation 45 Energy Generation 14 Energy Capacity 265 Matter Stores 300 Matter Capacity 300 Sight Range 16 Robot Scan Range 15 Terrain Scan Range 14 Terrain Scan Density 10 Armor Coverage 150 Core Shielding 20 Evasion (%) 55 Item Schematics ----------------- None Robot Schematics ------------------ None Fabricated ------------ Nothing Repaired ---------- Nothing Alien Tech Used ----------------- None Achievements -------------- \\IAMDERELICT Challenges ------------ None Game ------ Seed ResetBoltReactor Manual? 0 Play Time 01:13:06 Cumulative 61.4 hours Start 2025.07.27 @ 00:57:03 End 2025.07.27 @ 02:27:04 Sessions 3 Manual Loads 0 Difficulty Rogue Special Mode None Game No. 84 Rogue 84 Adventurer 0 Explorer 0 Win Type - Total 0 Types 0/0/0/0/0/0/0/0/0/0 Lore% 44 Gallery% 34 Achievement% 34 Wizard Run 0 Options --------- Layout 1 ASCII 0 Keyboard 0 Movement Arrows Keybinds 0 Fullscreen 1 Font 24/Smallcaps Map View 50x35 Zoom Use 0% Tactical HUD 1 Map Filters NONE Filters NONE Steam 1 RUN: 772cdbea-8abb-4adf-81ac-46eb4f62fe03